[Event "Romanian Rapid Open 2022"]
[Site "Sebes"]
[Date "2022.12.02"]
[Round "3.26"]
[White "Sulita, Vlad-Petre"]
[Black "Dan, Cantemir-Dorian"]
[Result "0-1"]
[ECO "B03"]
[WhiteElo "1632"]
[BlackElo "2036"]
[Annotator "TA"]
[PlyCount "66"]
[EventDate "2022.12.02"]
[EventType "rapid"]
[EventCountry "ROU"]
[SourceTitle "playchess.com"]
[Source "ChessBase"]
[SourceQuality "1"]
[TimeControl "600+5"]

{[%evp 9,66,25,32,28,32,43,37,11,0,4,47,-10,0,4,29,0,0,-60,-56,-88,-65,-73,-64,-124,-122,-124,-114,-126,-100,-193,-163,-184,-152,-200,-203,-400,-395,-639,-477,-437,-393,-391,-398,-397,-397,-400,-409,-516,-439,-588,-402,-625,-615,-676,-667,-726,-732,-783,-822]} 1. e4 {[%emt 0:00:03]} Nf6 {[%emt 0:00:07]} 2. e5 {[%emt 0:00:03]} Nd5 {[%emt 0:00:02]} 3. d4 {[%emt 0:00:02]} d6 {[%emt 0:00:03]} 4. exd6 {[%emt 0:00:02]} cxd6 {[%emt 0:00:02]} 5. c4 {[%emt 0:00:03]} Nc7 {[%emt 0:00:01]} (5... Qa5+ $2 6. Bd2 Nb4 7. d5 $18) 6. Nf3 {[%emt 0:00:04] B03: Alekhine's Defence: Four Pawns Attack.} g6 {[%emt 0:00:02]} 7. Nc3 {[%emt 0:00:03]} Bg7 {[%emt 0:00:02] [#]} 8. Bd3 $146 {[%emt 0:00:09] White is slightly better.} ({Predecessor:} 8. Be2 O-O 9. O-O d5 10. Bf4 dxc4 11. Bxc4 Ne6 12. Be3 Nc6 13. d5 Na5 14. Be2 {1-0 (46) Cedriano,F (2006)-Buchicchio,G (2095) Venice 2010}) 8... O-O {[%emt 0:00:03]} 9. O-O {[%emt 0:00:02]} Nc6 {[%emt 0:00:16]} 10. Be3 {[%emt 0:00:09]} (10. d5 $1 $14 Ne5 11. Nxe5 dxe5 12. Bg5) 10... e5 {[%emt 0:00:03][%cal Re5d4]} 11. d5 {[%emt 0:00:08]} Ne7 {[%emt 0:00:20][%cal Ob7b5]} 12. Bg5 {[%emt 0:01:23]} f6 {[%emt 0:00:08]} 13. Bh4 {[%emt 0:00:03]} ({White should play} 13. Bc1 $11) 13... Bf5 {[%emt 0:00:05]} 14. Qc2 {[%emt 0:00:14]} Bxd3 {[%emt 0:00:03]} 15. Qxd3 {[%emt 0:00:02]} Nf5 {[%emt 0:00:02]} 16. Rfe1 {[%emt 0:00:09] White is on the road to losing.} ({Better is} 16. Rab1 $15) 16... Nxh4 $17 {[%emt 0:00:02]} 17. Nxh4 {[%emt 0:00:02]} f5 {[%emt 0:00:07]} 18. g3 {[%emt 0:00:08]} Na6 {[%emt 0:00:15][%cal Bc7a6,Ba6c5,Bc5d3][%mdl 32]} 19. a3 {[%emt 0:00:16]} (19. Ng2 $17) 19... Nc5 {[%emt 0:00:26]} 20. Qc2 {[%emt 0:00:02]} Rc8 {[%emt 0:00:31]} 21. Rac1 {[%emt 0:00:23]} (21. Ng2 $17) 21... e4 $19 {[%emt 0:00:24] Hoping for ...Nd3.} 22. Nd1 $2 {[%emt 0:00:55] [#]} (22. Red1) 22... Nd3 {[%emt 0:00:05]} 23. Ne3 $2 {[%emt 0:00:06]} (23. Ng2) 23... Bxb2 {[%emt 0:00:31]} 24. Rb1 {[%emt 0:00:04]} Bf6 {[%emt 0:00:20]} (24... Bxa3 $2 {loses.} 25. Re2 $19) 25. Nhg2 {[%emt 0:00:05]} Nxe1 {[%emt 0:00:06]} 26. Nxe1 {[%emt 0:00:02]} Qc7 {[%emt 0:00:15]} 27. N1g2 {[%emt 0:00:07]} Be5 {[%emt 0:00:16]} 28. Qb3 {[%emt 0:00:33]} b6 {[%emt 0:00:10]} 29. a4 {[%emt 0:00:08]} Qc5 {[%emt 0:00:16] And now ...g5 would win.} 30. Re1 {[%emt 0:01:33]} (30. Nf4 $142 Bxf4 31. gxf4) 30... g5 {[%emt 0:00:26] Black is clearly winning.} 31. Qc2 {[%emt 0:00:16]} f4 {[%emt 0:00:32]} 32. Ng4 {[%emt 0:00:21]} Qxc4 {[%emt 0:00:07]} 33. Qxe4 {[%emt 0:00:09]} Qxe4 {[%emt 0:00:17] Weighted Error Value: White=0.63/Black=0.28 (precise)} 0-1

[Event "Romanian Rapid Open 2022"]
[Site "Sebes"]
[Date "2022.12.02"]
[Round "3.27"]
[White "Lupulescu, Adrian-Calin"]
[Black "Stan, Ion-Gabriel"]
[Result "1-0"]
[ECO "D02"]
[WhiteElo "1930"]
[BlackElo "1562"]
[Annotator "TA"]
[PlyCount "87"]
[EventDate "2022.12.02"]
[EventType "rapid"]
[EventCountry "ROU"]
[SourceTitle "playchess.com"]
[Source "ChessBase"]
[SourceQuality "1"]
[TimeControl "600+5"]

{[%evp 12,87,11,16,20,10,27,30,44,39,38,42,32,26,45,56,43,56,53,33,54,16,45,26,26,19,21,18,20,14,7,0,20,0,17,18,20,4,27,22,37,33,70,0,0,0,0,0,379,398,391,391,553,545,534,532,29974,29975,29975,29976,29975,29977,29977,29978,29978,29979,29979,29980,29980,29981,29981,29982,29982,29983,29983,29984,29984,29985]} 1. d4 {[%emt 0:00:04]} c6 {[%emt 0:00:03]} 2. Nf3 {[%emt 0:00:10]} d5 {[%emt 0:00:04]} 3. g3 {[%emt 0:00:02]} Nf6 {[%emt 0:00:06]} 4. Bg2 {[%emt 0:00:01]} g6 {[%emt 0:00:02]} 5. O-O {[%emt 0:00:02]} Bg7 {[%emt 0:00:02]} 6. Nbd2 {[%emt 0:00:03]} O-O {[%emt 0:00:03]} 7. b3 {[%emt 0:00:02]} Re8 {[%emt 0:00:10] D02: 1 d4 d5 2 Nf3 sidelines, including 2...Nf6 3 g3 and 2...Nf6 3 Bf4.} 8. Bb2 {[%emt 0:00:02]} Bg4 {[%emt 0:00:09] [#]} 9. h3 $146 {[%emt 0:00:03]} ({Predecessor:} 9. Ne5 Bc8 10. c4 Be6 11. e4 dxe4 12. Nxe4 Nxe4 13. Bxe4 Nd7 14. f4 Nf6 15. Bf3 {0-1 (25) Evtyugin,Y (1022)-Vontina,M (810) LSS email 2019}) 9... Bd7 {[%emt 0:00:01] White has an edge.} 10. Ne5 {[%emt 0:00:10]} Be6 {[%emt 0:00:07]} 11. c4 {[%emt 0:01:24]} Nbd7 {[%emt 0:00:14][%cal Bb8d7,Bd7f8,Bf8e6][%mdl 32]} 12. Nef3 {[%emt 0:00:19]} Rc8 {[%emt 0:00:39]} 13. Ng5 {[%emt 0:00:23]} Nf8 $1 {[%emt 0:00:08]} 14. Nxe6 {[%emt 0:00:36]} Nxe6 {[%emt 0:00:03]} 15. e3 {[%emt 0:00:12]} Qd7 {[%emt 0:00:19]} 16. Kh2 {[%emt 0:00:18]} Ng5 {[%emt 0:00:30]} 17. f4 {[%emt 0:01:26]} (17. f3 {simplifies} Red8 18. Qe2 Ne6 19. f4) 17... Nge4 {[%emt 0:00:06]} 18. Nxe4 {[%emt 0:00:08]} (18. Rc1 {feels hotter.} Nxd2 19. Qxd2 Ne4 20. Qe2) 18... Nxe4 {[%emt 0:00:02]} 19. Bxe4 {[%emt 0:00:17]} dxe4 {[%emt 0:00:02]} 20. Qc2 {[%emt 0:00:13]} f5 {[%emt 0:00:02]} 21. Rad1 {[%emt 0:01:20]} e6 {[%emt 0:00:06]} 22. Rd2 {[%emt 0:00:06]} Red8 {[%emt 0:00:05]} 23. g4 {[%emt 0:01:02]} Qf7 {[%emt 0:00:14]} 24. g5 {[%emt 0:00:39]} Qc7 {[%emt 0:00:12]} 25. h4 {[%emt 0:00:09]} Rd7 {[%emt 0:00:11]} 26. Rfd1 {[%emt 0:00:10]} Kf7 {[%emt 0:00:11]} 27. d5 {[%emt 0:00:19]} (27. h5 $14) 27... cxd5 $11 {[%emt 0:00:08]} 28. Bxg7 {[%emt 0:00:04]} Kxg7 {[%emt 0:00:02]} 29. Qb2+ {[%emt 0:00:06]} Kf7 $2 {[%emt 0:00:01][%mdl 8192] White now steadily converts the win.} (29... Kg8 $11 {and Black stays safe.}) 30. Qf6+ $18 {[%emt 0:00:03][%mdl 64] [#] Deflection} ({Stronger than} 30. cxd5 exd5 31. Qf6+ (31. Rxd5 Qc2+ 32. R1d2 Qxb2 $15) 31... Kg8 $11) 30... Kg8 {[%emt 0:00:01]} 31. Qxe6+ {[%emt 0:00:03]} (31. cxd5 exd5 32. Qe6+ Kf8 $11) 31... Rf7 {[%emt 0:00:02]} (31... Kf8 {was worth a try.} 32. Rxd5 (32. cxd5 Re8 $16) 32... Rxd5 33. Rxd5 Re8 34. Qf6+ Kg8) 32. Rxd5 {[%emt 0:00:06] White wants to mate with Rd7.} (32. cxd5 Qd7 $16) ({Not} 32. Qxd5 Qe7 33. Qb5 a6 $18) 32... Rcf8 {[%emt 0:00:09]} 33. Rd7 {[%emt 0:00:19] Inhibits Qe7.} Qc5 {[%emt 0:00:04]} 34. Rxf7 {[%emt 0:00:09] White mates.} ({Weaker is} 34. Rxb7 Qxe3 $11) 34... Rxf7 {[%emt 0:00:02] KQR-KQR} 35. Rd7 {[%emt 0:00:11]} Qf8 {[%emt 0:00:06]} 36. Rxb7 {[%emt 0:00:05]} Kg7 {[%emt 0:00:02]} 37. Qxf7+ {[%emt 0:00:04]} Qxf7 {[%emt 0:00:01]} 38. Rxf7+ {[%emt 0:00:01]} Kxf7 {[%emt 0:00:01] KP-KP} 39. b4 {[%emt 0:00:06]} Ke6 {[%emt 0:00:02]} 40. Kg2 {[%emt 0:00:02]} Kd6 {[%emt 0:00:07]} 41. Kf2 {[%emt 0:00:01]} Ke6 {[%emt 0:00:07]} 42. Ke2 {[%emt 0:00:02]} Kf7 {[%emt 0:00:01]} 43. Kd2 {[%emt 0:00:04]} Ke6 {[%emt 0:00:02]} 44. Kc3 {[%emt 0:00:01] Weighted Error Value: White=0.06 (flawless) /Black=0.46} 1-0

[Event "Romanian Rapid Open 2022"]
[Site "Sebes"]
[Date "2022.12.02"]
[Round "3.28"]
[White "Kedves, Lorand"]
[Black "Anghel, Iulian-Mihai"]
[Result "0-1"]
[ECO "D02"]
[WhiteElo "1641"]
[BlackElo "2061"]
[Annotator "TA"]
[PlyCount "86"]
[EventDate "2022.12.02"]
[EventType "rapid"]
[EventCountry "ROU"]
[SourceTitle "playchess.com"]
[Source "ChessBase"]
[SourceQuality "1"]
[TimeControl "600+5"]

{[%evp 10,86,11,-7,-6,-4,0,0,-2,-13,-19,-30,20,-19,0,-44,-58,-58,-49,-56,-62,-58,-58,-66,-38,-56,-56,-148,-89,-89,-68,-72,-41,-70,-59,-70,-55,-90,-83,-96,-90,-148,-125,-134,-73,-281,-265,-410,-287,-285,-271,-241,-172,-179,-187,-256,-216,-219,-157,-278,-281,-419,-431,-1111,-1079,-1487,-1455,-1377,-1373,-29989,-29990,-29990,-29980,-29985,-29982,-29975,-29972,-29993,-29994]} 1. d4 {[%emt 0:00:02]} Nf6 {[%emt 0:00:01]} 2. Bf4 {[%emt 0:00:02]} e6 {[%emt 0:00:04]} 3. e3 {[%emt 0:00:02]} d5 {[%emt 0:00:05]} 4. Nf3 {[%emt 0:00:04]} Bd6 {[%emt 0:00:04]} 5. Bxd6 {[%emt 0:00:03]} Qxd6 {[%emt 0:00:02]} 6. c3 {[%emt 0:00:02]} O-O {[%emt 0:00:08] D02: 1 d4 d5 2 Nf3 sidelines, including 2...Nf6 3 g3 and 2...Nf6 3 Bf4.} 7. Nbd2 {[%emt 0:00:03]} c5 {[%emt 0:00:06]} 8. dxc5 {[%emt 0:00:10]} Qxc5 {[%emt 0:00:02] The position is equal.} 9. Be2 {[%emt 0:00:04]} Nc6 {[%emt 0:00:10]} 10. O-O {[%emt 0:00:03]} a5 {[%emt 0:00:28]} (10... e5 $142) 11. Nb3 {[%emt 0:00:20]} Qb6 {[%emt 0:00:17] [#]} 12. Rb1 $146 {[%emt 0:00:05]} ({Predecessor:} 12. a4 e5 13. Qc2 Be6 14. Nfd2 Rac8 15. Bb5 Rfd8 16. Rac1 h6 17. h3 Ne8 18. Nf3 {½-½ (73) Bosbach,J-Balduan,M (2351) Leverkusen 2000}) 12... e5 {[%emt 0:01:00]} 13. Qc2 {[%emt 0:01:40] Prevents Bf5.} a4 {[%emt 0:00:51]} 14. Nbd2 {[%emt 0:00:08]} g6 {[%emt 0:00:18]} 15. Rbd1 {[%emt 0:00:53]} Bf5 {[%emt 0:00:15]} 16. Qc1 {[%emt 0:00:02]} Rac8 {[%emt 0:00:51]} 17. Nh4 {[%emt 0:00:03]} Be6 {[%emt 0:00:09]} 18. Qb1 {[%emt 0:01:35]} (18. Nhf3 $1 $15) 18... Rfd8 {[%emt 0:00:26]} (18... e4 $142 {Hoping for ...g5.} 19. c4 dxc4 20. Bxc4 Bg4) 19. Nhf3 $17 {[%emt 0:00:51] Prevents g5.} Bf5 $36 {[%emt 0:01:10][%mdl 2048] Inhibits b3. Black is pushing.} 20. Qa1 {[%emt 0:00:26]} Qa5 {[%emt 0:01:07]} 21. Nh4 {[%emt 0:00:17]} Be6 {[%emt 0:00:07]} 22. Nhf3 {[%emt 0:00:05]} b5 {[%emt 0:00:23][%cal Bb7b5,Bb5b4,Bb4b3][%mdl 32]} 23. Ng5 {[%emt 0:00:02]} Bf5 {[%emt 0:00:15]} 24. Ngf3 {[%emt 0:00:02]} b4 {[%emt 0:00:30]} 25. c4 {[%emt 0:00:49]} (25. cxb4 $142 Qxb4 26. h3) 25... d4 {[%emt 0:00:09]} 26. exd4 exd4 {[%emt 0:00:04] Black is much more active.} ({Black should try} 26... e4 27. d5 exf3 28. Nxf3 Ne7) 27. Nh4 $2 {[%emt 0:00:22] [#] This move loses the game for White.} (27. Rfe1 $17) 27... Bc2 $19 {[%emt 0:00:35]} 28. Rde1 {[%emt 0:00:48]} (28. Rc1 $142 d3 29. Bd1) 28... b3 {[%emt 0:00:35]} 29. Nhf3 {[%emt 0:00:12]} d3 {[%emt 0:01:04]} 30. Bd1 {[%emt 0:00:01]} Qb6 {[%emt 0:00:15]} 31. axb3 {[%emt 0:00:11]} axb3 {[%emt 0:00:02]} 32. Ne5 {[%emt 0:00:48]} (32. Qc1 $142) 32... Ra8 {[%emt 0:00:28]} 33. Qc1 {[%emt 0:00:05]} Nd4 {[%emt 0:00:02]} 34. Ndf3 {[%emt 0:00:18]} (34. Kh1 $17 {was worth a try.}) 34... Ra2 {[%emt 0:00:33]} 35. Nxd4 {[%emt 0:00:23]} (35. h4 $142) 35... Qxd4 {[%emt 0:00:07]} (35... Rxd4 $2 {too greedy.} 36. Qe3 Qd6 37. c5 Qxc5 38. Bxc2 bxc2 39. Nxd3 $19) 36. Nc6 {[%emt 0:00:05]} (36. Qg5 $142 Ra6 37. Nf3 Qxb2 38. Qd2) 36... d2 {[%emt 0:00:06]} ({Weaker is} 36... Qxc4 37. Nxd8 Qd4 38. Qd2 (38. Nc6 $2 d2 $19) 38... Qxd8 39. Bxc2 bxc2 40. Re3 $16) 37. Nxd4 {[%emt 0:00:19]} dxc1=Q {[%emt 0:00:03]} 38. Bxc2 {[%emt 0:00:13]} Qxb2 {[%emt 0:00:06]} 39. Rb1 {[%emt 0:00:55]} Qxd4 {[%emt 0:00:05] Black mates.} 40. Bxb3 {[%emt 0:00:01]} Rb2 {[%emt 0:00:02]} 41. Rbd1 {[%emt 0:00:13]} Qb6 {[%emt 0:00:05]} 42. c5 {[%emt 0:00:06]} Rxd1 {[%emt 0:00:07]} 43. Rxd1 {[%emt 0:00:07]} Qxb3 {[%emt 0:00:03] Weighted Error Value: White=0.89/Black=0.20 (precise)} 0-1

[Event "Romanian Rapid Open 2022"]
[Site "Sebes"]
[Date "2022.12.02"]
[Round "3.29"]
[White "Popescu, Alexandru-Mihai"]
[Black "Balaban-Voia, Alexandru"]
[Result "0-1"]
[ECO "B06"]
[WhiteElo "1634"]
[BlackElo "1994"]
[Annotator "TA"]
[PlyCount "56"]
[EventDate "2022.12.02"]
[EventType "rapid"]
[EventCountry "ROU"]
[SourceTitle "playchess.com"]
[Source "ChessBase"]
[SourceQuality "1"]
[TimeControl "600+5"]

{[%evp 9,56,-8,5,-39,35,-80,-79,-81,-76,-78,-89,-214,-66,-118,-87,-348,-359,-875,-866,-997,-967,-938,-649,-608,-357,-1002,-993,-997,-966,-997,-966,-958,-527,-788,-769,-756,-676,-793,-783,-780,-773,-760,-754,-1403,-1383,-1309,-1275,-1203,-1133]} 1. e4 {[%emt 0:00:01]} g6 {[%emt 0:00:01]} 2. d4 {[%emt 0:00:01]} Bg7 {[%emt 0:00:00]} 3. Be3 {[%emt 0:00:03]} d6 {[%emt 0:00:04]} 4. f4 {[%emt 0:00:14]} Nf6 {[%emt 0:00:22]} 5. Qd3 {[%emt 0:01:38] [#]} O-O $146 {[%emt 0:02:11][%cal Oc7c5]} ({Predecessor:} 5... Nc6 6. Nf3 O-O 7. Nc3 Ng4 8. Bg1 a6 9. h3 Nf6 10. g4 b5 11. g5 Nh5 {½-½ (45) Hou,M (1601)-Jorgensen,R Valby 2007}) 6. Be2 {[%emt 0:00:44] Inhibits c5. B06: Modern Defence.} d5 {[%emt 0:01:10]} ({Black should try} 6... e5 $15) 7. Nc3 {[%emt 0:01:41]} (7. e5 $1 $14 {was forced to keep a grip.}) 7... dxe4 $17 {[%emt 0:03:28]} 8. Nxe4 {[%emt 0:00:05] Black is better.} Nxe4 {[%emt 0:00:47]} 9. Qxe4 {[%emt 0:00:09]} c5 {[%emt 0:00:22]} 10. O-O-O {[%emt 0:00:54] [#]} (10. dxc5 $17 {is a better defense.} Bxb2 11. Rb1 (11. Rd1 Qa5+ 12. Kf2 Nc6 $17) 11... Qa5+ 12. Kf2 Qxa2 13. Nf3) 10... Qb6 {[%emt 0:00:05]} (10... Bf5 $1 $19 {[%cal Rf5e4]} 11. Qxb7 Nd7) 11. c3 {[%emt 0:00:31]} (11. Qd5 $1 $15) 11... Bf5 $36 {[%emt 0:00:48][%mdl 2048] Black is on the roll.} 12. Qxe7 {[%emt 0:03:51][%mdl 8192]} (12. Qd5 $17) 12... cxd4 $19 {[%emt 0:00:08]} 13. Bxd4 {[%emt 0:00:02]} (13. Rxd4 Nc6 14. Rd2 Nxe7 15. Bxb6 axb6 16. a3) 13... Bxd4 {[%emt 0:00:03]} 14. cxd4 {[%emt 0:00:37]} Rc8+ {[%emt 0:01:15]} 15. Kd2 {[%emt 0:00:26]} Qxb2+ {[%emt 0:00:07]} 16. Ke1 {[%emt 0:00:13]} Nc6 {[%emt 0:00:02]} 17. Qf6 {[%emt 0:00:10]} (17. Qe3 Bc2 18. Qd2) 17... Re8 {[%emt 0:00:06] Black is clearly winning.} 18. Rd2 {[%emt 0:00:06]} Qc1+ {[%emt 0:00:07]} 19. Rd1 {[%emt 0:00:01]} Qxf4 {[%emt 0:00:10] aiming for ...Nb4.} 20. Nf3 {[%emt 0:00:07]} Re6 {[%emt 0:00:13]} 21. Qh4 {[%emt 0:00:06]} Qxh4+ {[%emt 0:00:05]} 22. Nxh4 {[%emt 0:00:01]} Bg4 {[%emt 0:00:09]} 23. Nf3 {[%emt 0:00:04]} Rae8 {[%emt 0:00:03]} 24. Rd2 {[%emt 0:00:03]} Bxf3 {[%emt 0:00:03]} 25. gxf3 {[%emt 0:00:02] [#]} Nxd4 $1 {[%emt 0:00:02][%mdl 512]} 26. Rxd4 {[%emt 0:00:05]} (26. Rf1 Rxe2+) 26... Rxe2+ {[%emt 0:00:01]} 27. Kd1 {[%emt 0:00:01]} Rxa2 {[%emt 0:00:01]} 28. Rc4 {[%emt 0:00:03]} Rd8+ {[%emt 0:00:02] Weighted Error Value: White=1.44/Black=0.97} 0-1

[Event "Romanian Rapid Open 2022"]
[Site "Sebes"]
[Date "2022.12.02"]
[Round "3.30"]
[White "Ambru, Dan-Calin"]
[Black "Hoanca, Alexia-Ioana"]
[Result "0-1"]
[ECO "A67"]
[WhiteElo "1957"]
[BlackElo "1644"]
[Annotator "TA"]
[PlyCount "132"]
[EventDate "2022.12.02"]
[EventType "rapid"]
[EventCountry "ROU"]
[SourceTitle "playchess.com"]
[Source "ChessBase"]
[SourceQuality "1"]
[TimeControl "600+5"]

{[%evp 22,132,77,69,108,44,33,29,117,67,91,50,56,39,57,-72,73,43,62,37,46,54,60,54,61,31,27,10,77,-60,0,-48,0,-39,15,-127,60,-85,-25,-20,-24,-153,-12,-162,-181,-183,-99,-342,-342,-297,-248,-425,-370,-345,-300,-645,-546,-546,-544,-483,-449,-439,-431,-352,-281,-280,-254,-694,0,0,0,0,0,0,0,0,0,0,0,0,0,0,0,0,0,0,0,0,12,18,10,11,18,18,18,18,17,0,8,12,14,0,57,0,0,0,0,0,0,0,0,-2259,-1781]} 1. d4 {[%emt 0:00:03]} Nf6 {[%emt 0:00:01]} 2. c4 {[%emt 0:00:02]} c5 {[%emt 0:00:01]} 3. d5 {[%emt 0:00:01]} e6 {[%emt 0:00:01]} 4. Nc3 {[%emt 0:00:02]} exd5 {[%emt 0:00:01]} 5. cxd5 {[%emt 0:00:01]} d6 {[%emt 0:00:01]} 6. e4 {[%emt 0:00:02]} g6 {[%emt 0:00:01]} 7. f4 {[%emt 0:00:02]} Bg7 {[%emt 0:00:03]} 8. Bb5+ {[%emt 0:00:01]} Nfd7 {[%emt 0:00:02]} 9. Be2 {[%emt 0:00:02]} O-O {[%emt 0:00:10]} 10. Nf3 {[%emt 0:00:02]} a6 {[%emt 0:00:08]} 11. a4 {[%emt 0:00:03]} Re8 {[%emt 0:00:51]} 12. O-O $1 {[%emt 0:00:04]} Qc7 {[%emt 0:00:05] [#] A67: Modern Benoni: Taimanov Variation.} 13. f5 $146 {[%emt 0:01:20]} ({Better is} 13. h3 $16) ({Predecessor:} 13. Kh1 Bxc3 14. bxc3 Rxe4 15. Bd3 Nf6 16. Bxe4 Nxe4 17. Ng5 Bf5 18. g4 Nxg5 19. gxf5 {1-0 (42) Yang,K (2481)-Babazada,K (2431) Chess.com INT 2022}) 13... Ne5 $14 {[%emt 0:00:18]} 14. Nxe5 {[%emt 0:00:12]} Rxe5 {[%emt 0:00:22]} (14... Bxe5 $11 15. Qe1 Qd8) 15. Bf4 {[%emt 0:01:21]} ({White should play} 15. Qe1 $16) 15... Re8 {[%emt 0:00:02]} 16. Qd2 {[%emt 0:01:48]} Nd7 {[%emt 0:01:09]} 17. Rac1 {[%emt 0:00:41]} Rb8 {[%emt 0:00:18]} 18. b4 {[%emt 0:00:10]} (18. Bg5 $14) 18... b6 {[%emt 0:01:20]} (18... cxb4 $17 19. Nb1 Qb6+ 20. Be3 Qa5) 19. Kh1 {[%emt 0:00:53]} Ne5 {[%emt 0:01:54]} 20. a5 {[%emt 0:00:18]} (20. Bg5 {simplifies} f6 21. Bh4 Qd8 22. Rb1) 20... bxa5 {[%emt 0:01:46]} (20... cxb4 21. Na4 Qe7 22. Nxb6 $16) 21. bxc5 {[%emt 0:00:01]} Qxc5 {[%emt 0:00:01] [#]} 22. Nb5 $1 {[%emt 0:00:30][%mdl 64]} Qb6 {[%emt 0:00:15]} 23. Be3 {[%emt 0:01:11]} Qd8 {[%emt 0:00:30]} 24. Nc7 {[%emt 0:00:26]} (24. Na7 {simplifies} gxf5 25. exf5 Qe7 26. Nxc8 Rexc8 27. Rxc8+ Rxc8 28. Qxa5 Ra8 29. Bf2) 24... Rf8 {[%emt 0:00:36]} (24... Re7 $1 $11 25. Nxa6 Bxa6 26. Bxa6 Re8) 25. Qxa5 {[%emt 0:00:41]} (25. Bg5 $1 $16 {[%cal Rg5d8]} f6 26. Be3) 25... Qh4 {[%emt 0:00:48]} (25... Rb2 $1 $15 26. Qe1 Ra2) 26. Rf4 {[%emt 0:00:01]} (26. Bxa6 $2 Rb2 27. Qa3 (27. Bxc8 $2 Ng4 $19) 27... Ng4 $19) (26. Qd2 $11) 26... Qd8 {[%emt 0:00:13]} 27. Rff1 $1 {[%emt 0:00:50]} (27. Bxa6 $2 Bxa6 28. Qxa6 Rb3 29. fxg6 hxg6 $19) 27... Qh4 {[%emt 0:00:48]} (27... Rb2 $15 28. Qe1 a5) 28. Qa4 {[%emt 0:00:03]} (28. Bxa6 $2 Rb2 29. Qa3 (29. Bxc8 $2 Ng4 $19) 29... Ng4 $19) (28. Nxa6 $2 Rb2 29. Rf4 Qg5 $19) (28. Qd2 $11) 28... Bd7 $2 {[%emt 0:00:18]} (28... gxf5 $17 {Strongly threatening ...Rb2.} 29. Qa3 (29. Bxa6 $2 fxe4 30. Bxc8 Rfxc8 $19) (29. Rf4 Ng4 $17) 29... Ng6 30. exf5 Bb2) 29. Qc2 {[%emt 0:00:25] Inhibits Rb2.} (29. Qa3 $1 $14 {is the one way to stay ahead.}) 29... Rb2 {[%emt 0:00:15]} 30. Qxb2 $11 {[%emt 0:00:35]} Ng4 $40 {[%emt 0:00:00][%csl Gg4][%cal Rh4h2][%mdl 192] Discovered Attack, Double Attack. Black mounts an attack.} (30... Qxe4 $2 31. Qa3 g5 32. Bxa6 Bxf5 33. Bxg5 $18) 31. Qxg7+ $1 {[%emt 0:00:03]} Kxg7 {[%emt 0:00:01][%csl Gg4][%cal Rh4h2] The board is on fire.} 32. Bd4+ {[%emt 0:00:13] A strong pair of Bishops.} (32. Bxg4 $1 $11 {and White stays safe.} Qxg4 33. Bf4) 32... Kg8 $19 {[%emt 0:00:11][%csl Gg4][%cal Rh4h2]} 33. h3 {[%emt 0:00:01] [#]} Ne5 {[%emt 0:00:07]} (33... Nf6 $1 $19 {[%cal Rf6e4]} 34. Bxf6 (34. Nxa6 $2 {loses.} Nxe4 35. Kh2 Nd2 $19) 34... Qxf6) 34. Bxa6 $2 {[%emt 0:00:13]} (34. Bxe5 $17 dxe5 35. Nxa6) 34... Qxe4 {[%emt 0:00:04]} 35. Bxe5 {[%emt 0:00:14]} Qxe5 {[%emt 0:00:07]} 36. Rce1 $2 {[%emt 0:00:19]} (36. fxg6 hxg6 37. Rb1) 36... Qc3 {[%emt 0:00:06]} 37. Rc1 {[%emt 0:00:01]} Qa5 {[%emt 0:00:04]} 38. Bd3 {[%emt 0:00:03]} (38. f6) 38... Bxf5 {[%emt 0:00:04]} 39. Bxf5 {[%emt 0:00:03]} gxf5 {[%emt 0:00:01]} 40. Rc6 {[%emt 0:00:09]} Kh8 {[%emt 0:00:04]} 41. Rxf5 {[%emt 0:00:07]} Qe1+ {[%emt 0:00:05]} 42. Kh2 {[%emt 0:00:01][%cal Oc6c2]} Rg8 {[%emt 0:00:04] ( -> ...Qg3+)} 43. Rc2 {[%emt 0:00:10]} Qe4 {[%emt 0:00:06]} 44. Rcf2 {[%emt 0:00:04] [#]} (44. Rff2) 44... Qe7 $2 {[%emt 0:00:05]} (44... Rxg2+ $1 $19 {[%mdl 512]} 45. Rxg2 Qxf5) 45. Rxf7 $11 {[%emt 0:00:02]} Qe5+ {[%emt 0:00:01]} 46. Kh1 {[%emt 0:00:01]} Qe1+ {[%emt 0:00:07]} 47. Rf1 {[%emt 0:00:04]} Qe4 {[%emt 0:00:03][%csl Gg8][%cal Re4g2]} 48. R1f2 {[%emt 0:00:12]} Qe1+ {[%emt 0:00:07]} 49. Kh2 {[%emt 0:00:01]} Qe5+ {[%emt 0:00:02]} 50. R7f4 {[%emt 0:00:06]} Qe3 {[%emt 0:00:18]} 51. Ne6 {[%emt 0:00:05]} Qg3+ {[%emt 0:00:05]} 52. Kh1 {[%emt 0:00:06]} Qb3 {[%emt 0:00:04]} 53. Rf8 {[%emt 0:00:11] Rxg8+ would kill now.} h6 $1 {[%emt 0:00:03]} (53... Qxd5 $2 {is a self mate.} 54. Rxg8+ Kxg8 55. Rf8#) 54. R8f5 {[%emt 0:00:07]} Qd1+ {[%emt 0:00:09]} 55. Kh2 {[%emt 0:00:05] Hoping for Rf6.} Qd3 {[%emt 0:00:00]} 56. Rf6 {[%emt 0:00:02]} Qg3+ {[%emt 0:00:00]} (56... Qxd5 $2 57. Rxh6#) ({Don't play} 56... Qe3 57. R2f3 Qd2 58. Nf4 $16) 57. Kh1 {[%emt 0:00:03][%cal Rf6h6]} Rg6 {[%emt 0:00:00]} 58. Rf8+ {[%emt 0:00:05]} (58. Rf7 {keeps more tension.} Qe3 59. Rf8+ Rg8 60. R8f6) 58... Rg8 {[%emt 0:00:00]} 59. R8f6 {[%emt 0:00:06][%cal Rf6h6]} (59. R8f3 $5 {[%cal Rf3g3]} Qe5 60. Rf6 $14) 59... Rg6 {[%emt 0:00:00]} 60. R6f3 {[%emt 0:00:02]} (60. Rf7 {looks sharper.} Qe3 61. Rf8+ Rg8 62. R8f6) 60... Qe5 {[%emt 0:00:00]} 61. Nf4 {[%emt 0:00:05]} Rg8 {[%emt 0:00:00]} (61... Rg3 $11) 62. h4 {[%emt 0:00:03]} ({White should try} 62. Re2 $1 $14 Qg5 63. Re6) 62... Rg4 {[%emt 0:00:00]} 63. h5 {[%emt 0:00:04]} Rh4+ {[%emt 0:00:17]} 64. Kg1 $1 {[%emt 0:00:01] White threatens Ng6+ and mate.} Qa1+ {[%emt 0:00:09]} 65. Rf1 {[%emt 0:00:00]} Qa7+ {[%emt 0:00:01]} 66. R3f2 $2 {[%emt 0:00:04][%mdl 8192]} (66. R1f2 $11 Qa1+ 67. Rf1 Qa7+ 68. R1f2) 66... Rxf4 {[%emt 0:00:03] Weighted Error Value: White=0.51/Black=0.37} 0-1